Cogmind - Beta 16.1 @@@ ROGUE MODE // 2026.03.05 @ 07:41:11 Player: Endlessblaze Result: Destroyed by G-34 Mercenary with Small Laser Performance ------------- Evolutions (1) 500 Regions Visited (2) 400 Robots Destroyed (33) 165 Value Destroyed (780) 780 Prototype IDs (0) 0 Alien Tech Used (0) 0 Bonus (0) 0 TOTAL SCORE: 1845 Bonus ------- None Cogmind --------- Core Integrity 0/400 Matter 24/300 Energy 33/100 System Corruption 0% Temperature Cool (6) Movement Core (1400) Ox27 Location -9/Materials Parts ------- > --- POWER (1) -------- (None) > --- PROPULSION (2) --- (None) > --- UTILITY (4) ------ Huge Storage Unit > --- WEAPON (2) ------- Grenade Launcher > --- INVENTORY (25) --- Wheel Wheel Cooling System EM Pulse Gun Grenade Launcher Heavy Hammer Peak State ------------ > --- POWER ------------ Light Ion Engine > --- PROPULSION ------- Wheel Wheel > --- UTILITY ---------- Huge Storage Unit Weight Redist. System Seismic Detector Improved Targeting Computer > --- WEAPON ----------- Grenade Launcher Grenade Launcher > --- INVENTORY -------- Wheel Wheel EM Pulse Gun Grenade Launcher Grenade Launcher Grenade Launcher Grenade Launcher Hammer Heavy Hammer [Rating: 12] Favorites ----------- Power Light Ion Engine Engine Light Ion Engine Propulsion Aluminum Leg Leg Aluminum Leg Wheel Wheel Utility Seismic Detector Device Seismic Detector Storage Huge Storage Unit Processor Improved Targeting Computer Weapon Grenade Launcher Energy Gun EM Pulse Gun Launcher Grenade Launcher Impact Weapon Hammer Build | -11 -10 -9 ------- Run | Yrd Mat Mat Slots Evolved 2 | . . 2 Power . | . . . Propulsion . | . . . Utility 2 | . . 2 Weapon . | . . . Parts Attached 19 | 7 3 9 Power 2 | 1 1 . Engine 2 | 1 1 . Core . | . . . Reactor . | . . . Propulsion 4 | 2 . 2 Treads . | . . . Leg 2 | 2 . . Wheel 2 | . . 2 Hover . | . . . Flight . | . . . Utility 5 | 2 . 3 Device 3 | 2 . 1 Storage 1 | . . 1 Processor 1 | . . 1 Hackware . | . . . Protection . | . . . Artifact . | . . . Weapon 8 | 2 2 4 Energy Gun 2 | 2 . . Energy Cannon . | . . . Ballistic Gun . | . . . Ballistic Cannon . | . . . Launcher 5 | . 2 3 Special Weapon . | . . . Impact Weapon 1 | . . 1 Slashing Weapon . | . . . Piercing Weapon . | . . . Special Melee Weapon . | . . . Unidentified Prototypes . | . . . Parts Lost 15 | . 4 11 Power 2 | . 1 1 Propulsion 2 | . . 2 Utility 4 | . 1 3 Weapon 7 | . 2 5 Highest Loss Streak 10 | . 3 10 To Critical Strikes . | . . . Average Backups 5 | . 2 8 Power . | . . . Propulsion . | . . 1 Utility . | . . . Weapon 3 | . 1 6 Tool/Special . | . . . Unused Backups 6 | . . 6 Power . | . . . Propulsion 2 | . . 2 Utility 1 | . . 1 Weapon 3 | . . 3 Tool/Special . | . . . Average Slot Usage (%) 78 | . 78 78 Engine 8 | . 8 8 Leg 13 | . 28 1 Wheel 9 | . . 18 Device 14 | . 13 15 Storage 5 | . . 10 Processor 1 | . . 3 Energy Gun 4 | . 10 . Launcher 18 | . 16 19 Peak Build Rating 12 | 9 9 12 Average Rating 7 | 6 5 8 On Entrance 5 | . 9 6 Avg Prop Armor Cover (%) 29 | 29 . . Naked Turns . | . . . Heaviest Build 90 | 11 11 90 Greatest Support 26 | 20 20 26 Greatest Overweight (x) 5 | 2 . 5 Average Overweight (x) 1 | . . 3 Largest Inventory Capacity 25 | 5 5 25 Average Capacity 14 | 5 5 24 Most Carried 10 | . 5 10 Average Carried 5 | . 2 8 Final Capacity 25 | 5 5 25 Final Carried 6 | . 5 6 Class Distribution -------------------- 100% | Mutant Dominant Class ---------------- Mutant | -10/Materials Mutant | -9/Materials Resources | -11 -10 -9 ----------- Run | Yrd Mat Mat Matter Collected 400 | 176 181 43 Remotely . | . . . Salvage Created 648 | 30 441 177 Parts 46 | 4 27 15 Haulers Intercepted . | . . . Recyclers Shooed . | . . . Parts Field Recycled . | . . . Retrieved Matter . | . . . Parts Self-Destructed . | . . . Prevented . | . . . Parts Restored . | . . . Kills | -11 -10 -9 ------- Run | Yrd Mat Mat Combat Hostiles Destroyed 22 | . 13 9 Melee 1 | . . 1 Guns 4 | . 4 . AOE 17 | . 9 8 Classes Destroyed 9 | 1 6 2 Worker 1 | . . 1 Builder 4 | . 3 1 Tunneler 2 | 1 . 1 Recycler 1 | . 1 . Operator 2 | . 2 . Watcher 1 | . 1 . Swarmer 6 | . 6 . Grunt 15 | . 7 8 Sentry 1 | . . 1 Best Kill Streak 7 | 1 5 7 Combat Bots Only 5 | . 3 5 Max Kills in Single Turn 3 | 1 3 2 Gunslinging . | . . . Exploded 3 | . 3 2 Melee 1 | . . 1 Uniques/NPCs Destroyed . | . . . Combat | -11 -10 -9 -------- Run | Yrd Mat Mat Hostile Shots Fired 140 | . 51 89 Missed 31 | . 17 14 Hits 109 | . 34 75 Projectile 109 | . 34 75 Critical Strikes 3 | . 2 1 Damage Taken 1545 | . 446 1099 Core 566 | . 161 405 Absorbed by Shields . | . . . Regen/Repaired (Parts) 17 | . 17 . Core Remaining (%) 67 | 100 35 . Volleys Fired 41 | 1 26 14 Largest 2 | 2 2 2 Hottest 80 | 80 80 60 Shots Fired 75 | 2 52 21 Gun 42 | 2 40 . Cannon . | . . . Launcher 33 | . 12 21 Special . | . . . Kinetic . | . . . Thermal . | . . . Explosive 33 | . 12 21 Electromagnetic 42 | 2 40 . Robot Hit Streak 26 | 1 11 26 Robot Miss Streak 3 | 1 3 . Penetration Max . | . . . Secondary Targets 2 | . 2 . Max Gunslinging Chain 1 | . 1 . Shots Hit Robots 48 | 1 29 18 Core Hits 50 | 1 25 24 Critical Kills . | . . . Critical Parts Destroyed 2 | . . 2 Critical Strikes 2 | . . 2 Smash 2 | . . 2 Melee Attacks 5 | . . 5 Impact 5 | . . 5 Slashing . | . . . Piercing . | . . . Sneak Attacks . | . . . Combat Hostiles . | . . . Follow-up Attacks . | . . . Damage Inflicted 1983 | 15 919 1049 Guns 322 | 15 307 . Cannons . | . . . Explosions 1577 | . 612 965 Melee 77 | . . 77 Ramming 7 | . . 7 Kinetic . | . . . Thermal 158 | . 158 . Explosive 1419 | . 454 965 Electromagnetic 322 | 15 307 . Impact 77 | . . 77 Slashing . | . . . Piercing . | . . . Highest Corruption . | . . . Average Corruption . | . . . Corruption Purged . | . . . Corruption Blocked . | . . . Overload Shots . | . . . Overflow Damage 181 | . 114 67 Projectiles . | . . . Explosions 127 | . 114 13 Melee 54 | . . 54 Knockbacks . | . . . Impact . | . . . Kinetic . | . . . Secondary . | . . . Self-Inflicted Damage 318 | . 143 175 Shots 11 | . 3 8 Rammed 1 | . . 1 Targets Rammed 1 | . . 1 Kicked . | . . . Crushed . | . . . Highest Temperature 156 | 18 156 4 Average Temperature 49 | 12 53 2 Received Heat Transfer 564 | . 48 516 Siege Activations . | . . . Martial Activations . | . . . Shielding Activations . | . . . Robots Disrupted . | . . . Combat Hostiles . | . . . Robots Corrupted . | . . . Combat Hostiles . | . . . Parts Fried 1 | . 1 . Impact Corruptions 2 | . . 2 Robots Melted . | . . . Combat Hostiles . | . . . Parts Melted . | . . . Heat Transferred 200 | . 200 . Parts Sabotaged . | . . . Parts Stolen . | . . . Parts Stripped . | . . . Power Chain Reactions 3 | . 3 . Alert | -11 -10 -9 ------- Run | Yrd Mat Mat Maximum Alert Level 1 | . 1 . Low Security (%) 74 | 100 41 100 Level 1 25 | . 58 . Level 2 . | . . . Level 3 . | . . . Level 4 . | . . . Level 5 . | . . . High Security . | . . . Max Security . | . . . Peak Influence 299 | 5 299 169 Initial 117 | . . 117 Average 115 | . 180 71 Influence Increases 826 | 5 479 342 Destroy 0b10 Robot/C 440 | . 260 180 Destroy 0b10 Robot/NC 55 | 5 35 15 Destroy Leader 92 | . 52 40 Successful Hack 4 | . 2 2 Disable Machine 75 | . 45 30 Destroy Structure 160 | . 85 75 Influence Decreases 667 | 5 200 462 Entered New Map 162 | . . 162 Time Decay 365 | 5 170 190 Lost Part 140 | . 30 110 Squads Dispatched 5 | . 3 2 Investigation 2 | . 1 1 Extermination . | . . . Reinforcement 3 | . 2 1 Assault . | . . . Garrison . | . . . Intercept . | . . . Searches Triggered . | . . . Construction Impeded . | . . . Haulers Reinforced . | . . . Active Scanning Responses . | . . . Cargo Convoy Interrupts . | . . . Stealth | -11 -10 -9 --------- Run | Yrd Mat Mat Distress Signals 3 | . 3 . Communications Jammed . | . . . Distress Signals . | . . . Times Spotted 30 | . 17 13 Peak Tracking Total 9 | . 5 9 Tactical Retreats . | . . . Traps | -11 -10 -9 ------- Run | Yrd Mat Mat Traps Triggered 2 | . 1 1 Indirectly . | . . . Trap Hack Attempts . | . . . Triggered . | . . . Disarmed . | . . . Reprogrammed . | . . . Reused . | . . . Traps Extracted . | . . . Installed . | . . . Triggered . | . . . Machines | -11 -10 -9 ---------- Run | Yrd Mat Mat Machines Disabled 5 | . 3 2 Max in Single Turn 1 | . 1 1 Machines Repaired . | . . . Machines Dismantled . | . . . Machines Sabotaged . | . . . Overloaded Fab Kills . | . . . Hacking | -11 -10 -9 --------- Run | Yrd Mat Mat Machines Accessed 2 | . 1 1 Terminals . | . . . Fabricators . | . . . Repair Stations 1 | . 1 . Recycling Units . | . . . Scanalyzers 1 | . . 1 Garrison Access . | . . . Total Hacks 10 | . 4 6 Successful 8 | . 3 5 Failed 2 | . 1 1 Catastrophic . | . . . Database Lockouts . | . . . Manual . | . . . Terminals . | . . . Fabricators . | . . . Repair Stations 4 | . 4 . Recycling Units . | . . . Scanalyzers 6 | . . 6 Garrison Access . | . . . Terminal Hacks . | . . . Fabricator Hacks . | . . . Repair Station Hacks 3 | . 3 . Scan Component 2 | . 2 . Repair 1 | . 1 . Recycling Unit Hacks . | . . . Scanalyzer 5 | . . 5 Insert Component 2 | . . 2 Analyze 2 | . . 2 Retrieve Study 1 | . . 1 Garrison Access Hacks . | . . . Unauthorized Hacks . | . . . Terminals . | . . . Fabricators . | . . . Repair Stations . | . . . Recycling Units . | . . . Scanalyzers . | . . . Garrison Access . | . . . Data Cores Recovered . | . . . Used . | . . . Hacking Detections 2 | . 1 1 Full Trace Events . | . . . Feedback Events . | . . . Feedback Blocked . | . . . Robot Schematics Acquired . | . . . Robots Built . | . . . Authchips . | . . . Time . | . . . Total Robot Build Rating . | . . . Part Schematics Acquired 2 | . . 2 Parts Built . | . . . Authchips . | . . . Time . | . . . Total Part Build Rating . | . . . Part Studies Acquired 1 | . . 1 Parts Repaired 1 | . 1 . Time 36 | . 36 . Parts Recycled . | . . . Recycled Matter . | . . . Retrieved Matter . | . . . Retrieved Components . | . . . Parts Scanalyzed 2 | . . 2 Part Schematics Acquired 2 | . . 2 Parts Damaged . | . . . Bothacking | -11 -10 -9 ------------ Run | Yrd Mat Mat Used RIF Installer . | . . . Robots Hacked . | . . . Non-combat . | . . . Combat . | . . . Robot Hacks Applied . | . . . Relay Couplers Released . | . . . Fabnet Peak Effective % . | . . . Robots Rewired . | . . . Allies Hacked . | . . . Hacks Repelled . | . . . Allies | -11 -10 -9 -------- Run | Yrd Mat Mat Total Allies . | . . . Largest Group . | . . . Highest-Rated Group . | . . . Highest-Rated Ally . | . . . Total Orders . | . . . Ally Attacks . | . . . Total Damage . | . . . Kills . | . . . Allies Corrupted . | . . . Allies Melted . | . . . Intel | -11 -10 -9 ------- Run | Yrd Mat Mat Active Infowar (turns) 678 | 20 307 351 Terrain 37 | 20 17 . Seismic 678 | 20 307 351 Robot Analysis Total . | . . . Derelict Logs Recovered . | . . . Drone Launches . | . . . Drone Recoveries . | . . . Exploration | -11 -10 -9 ------------- Run | Yrd Mat Mat Turns Passed 785 | 46 345 394 Spaces Moved 415 | 31 184 200 Core 12 | 12 . . Treads . | . . . Legs 211 | 19 184 8 Wheels 192 | . . 192 Hover . | . . . Flight . | . . . Fastest Speed 50 | 50 120 80 Average Speed 124 | 105 120 131 Slowest Speed 155 | 150 120 155 Overloaded Moves . | . . . Propulsion Burnouts . | . . . Robots Hopped . | . . . Potential Cave-ins . | . . . Cave-ins Triggered . | . . . Exploration Rate (%) 17 | 3 37 13 Regions Visited 2 Branch Regions . Pre-discovered Areas . | . . . Known Exits Taken . | . . . Unknown Exits Taken 2 | 1 1 . Scrap Searched . | . . . Spaces Dug . | . . . Terrain Destroyed 214 | . 102 112 Melee . | . . . Projectile . | . . . AOE 214 | . 102 112 Terrain Rammed . | . . . Walls Destroyed . | . . . Machines Disabled . | . . . Actions | -11 -10 -9 --------- Run | Yrd Mat Mat Total 592 | 38 254 300 Wait 100 | . 36 64 Move 413 | 30 183 200 Hop . | . . . Pick Up 11 | . 5 6 Fast Attach 13 | 7 4 2 Attach 5 | . . 5 Detach . | . . . Swap 3 | . . 3 Drop . | . . . Fire 41 | 1 26 14 Melee 5 | . . 5 Ram 1 | . . 1 Kick . | . . . Crush . | . . . Escape Stasis . | . . . Rewire . | . . . Trap . | . . . Miscellaneous . | . . . Route ------- -11/Scrapyard -10/Materials -9/Materials (discovered 1 exit: [*Sto]) History --------- Turn | Location | Event 13 | -11/Scrapyard | Discovered new exit (range 16) 47 | -11/Scrapyard | Entered Materials 165 | -10/Materials | Core integrity fell below 50% 199 | -10/Materials | Lost 3 parts (1p2w) 204 | -10/Materials | Discovered new exit (range 13) 280 | -10/Materials | Repaired Broken Seismic Detector 317 | -10/Materials | Build established: Mutant 392 | -10/Materials | Entered another Materials area 392 | -9/Materials | Evolved 2 slots: Utility x2 392 | -9/Materials | Discovered new exit (range 12) 766 | -9/Materials | Core integrity fell below 50% 777 | -9/Materials | Core integrity fell below 20% 786 | -9/Materials | Destroyed by G-34 Mercenary with Small Laser Last Messages --------------- 00769_ G-34 Mercenary destroyed. 00769_ Atomic Centrifuge disabled. 00769_ G-34 Mercenary destroyed. 00770_ G-34 Mercenary heat spikes uncontrollably. 00771_ M-13 Machinist repairs G-34 Mercenary Ion Engine. 00771_ Grenade Launcher+ destroyed. 00772_ K-01 Serf collects debris. 00772_ Imp. Targeting Computer destroyed. 00773_ U-05 Engineer lays Concrete. 00773_ G-34 Mercenary destroyed. 00773_ G-47 Trooper destroyed. 00775_ U-05 Engineer builds a Wall. 00775_ G-34 Mercenary destroyed. 00775_ K-01 Serf destroyed. 00775_ Destroyed Welding Torch. 00776_ Grenade Launcher+ destroyed. 00778_ U-05 Engineer destroyed. 00779_ The unstable cave ceiling collapses. 00784_ Grenade Launcher+ destroyed. Map ----- +----------------------------------------------------+ | ?????????????????????????????????????????????????? | | ?????????????????????????????????????????????????? | | ?????????????????????????????????????????????????? | | ?????????????????????????????????????????????????? | | ?????????????????????????????????????????????????? | | ?????????????????????????????????????????????????? | | ?????????????????????????????????????????????????? | | ?????????????????????????????????????????????????? | | ?????????????????????????????????????????????????? | | ?????????????????????????????????????????????????? | | ???????????????????????? ??????????????????????? | | ???????????????????????? ??????????????????????? | | ???????????????????????? ??????????????????????? | | ???????????????????????? ??????????????????????? | | ???????????????????????? ??????????????????????? | | ???????????????????????? ????????? ????????????? | | ???????????????????????? ?????? ????????????? | | ???????????????????????? ???"" ?????????????? | | ???????????????????##??? ??""" ???????????????? | | ??????????????????## ####+##?""" ????????????????? | | ??????????????????# # ?????????????????? | | ??????????????????# !# ??????????????????? | | ??????????????????# ???????????????????? | | ??????????????????# Y ##???????????????????? | | ??????????????????# # ######??????????????? | | ??????????????????# @ " """ #??????????????? | | ??????????????????# | !"" """ #??????????????? | | ??????????????????# =[== """ #??????????????? | | ??????????????????# g #??????????????? | | ??????????????????# #??????????????? | | ??????????????????# #??????????????? | | ??????????????????# #??????????????? | | ??????????????????# # ## ##?????????????? | | ??????????????????## # #### ## ##????????????? | | ???????????????????### ### #????????????? | | ?????????????????????# #????????????? | | ?????????????????????###### [ ######???????? | | ??????????????????????###### ## #???????? | | ??????????????????????# u ## ## #???????? | | ??????????????????????# # ## #???????? | | ??????????????????????# T"## ## #???????? | | ??????????????????????# ""## ## ######### | | ??????????????????????# = ## ## ## | | ?????????????????????# = """ ## ## ##""" | | ?????????????????????# """ # ## ###""" | | ???????????????????? # """ # #""" | | ??????????????????# # # < + | | ??????????????????## ## # ##### #""" | | ???????????????????# ##???# #### #""" | | ??????????????????# # ####### ##??# #""" | +----------------------------------------------------+ Best States ------------- Heat Dissipation 28 Energy Generation 10 Energy Capacity 250 Matter Stores 300 Matter Capacity 300 Sight Range 16 Terrain Scan Range 16 Terrain Scan Density 10 Additional Mass Support 6 Evasion (%) 55 Targeting Accuracy 6 Item Schematics ----------------- Grenade Launcher | -9/Materials | Scanalyzed EM Pulse Gun | -9/Materials | Scanalyzed Robot Schematics ------------------ None Fabricated ------------ Nothing Repaired ---------- Seismic Detector | 15% | -10/Materials | Broken Studied --------- Grenade Launcher | -9/Materials | Hacked Alien Tech Used ----------------- None Achievements -------------- None Challenges ------------ None Game ------ Seed TitaniumCooledKatana Manual? 0 Play Time 00:11:20 Cumulative 47.8 hours Start 2026.03.05 @ 07:31:00 End 2026.03.05 @ 07:41:11 Sessions 1 Manual Loads 0 Difficulty Rogue Special Mode None Game No. 70 Rogue 70 Adventurer 0 Explorer 0 Win Type - Total 0 Types 0/0/0/0/0/0/0/0/0/0 Lore% 41 Gallery% 31 Achievement% 22 Wizard Run 0 Options --------- Layout 1 ASCII 0 Keyboard 0 Movement Arrows Keybinds 0 Fullscreen 1 Font 16/SmallcapsGlow Map View 55x38 Zoom Use 0% Tactical HUD 1 Map Filters NONE Filters NONE Steam 1 RUN: 1338bff8-e21e-464c-b794-73ca69033231